bitfinex/quotes_SOLUSD_20260119
["timestamp","ask_amount","ask_price","bid_price","bid_amount"]
[1768818855087,2.71638584,133.63,133.61,2.41275288]
[1768818860666,2.71638584,133.64,133.61,5.25867468]
[1768818860989,2.71638584,133.64,133.61,2.8459218]
[1768818861174,2.71638584,133.64,133.62,2.41275288]
[1768818862768,2.71638584,133.64,133.61,5.25867468]
[1768818863293,2.71638584,133.64,133.6,10.15952226]
[1768818863471,2.71638584,133.64,133.61,2.41275288]
[1768818864587,2.85334084,133.65,133.62,5.08742035]
[1768818867288,2.85334084,133.65,133.62,2.67466747]
[1768818867485,10.33568279,133.65,133.62,2.67466747]
[1768818867685,2.85334084,133.64,133.61,5.08742035]
[1768818867889,2.85334084,133.64,133.6,12.57219357]
[1768818868291,2.85334084,133.64,133.61,2.67466747]
[1768818868493,2.85334084,133.64,133.6,12.57219357]
[1768818869097,2.85334084,133.64,133.59,12.57285051]
[1768818869098,2.85334084,133.63,133.59,12.57285051]
[1768818869397,2.85334084,133.63,133.6,2.67466747]
[1768818879295,2.85334084,133.63,133.59,12.58838369]
[1768818881606,2.85334084,133.63,133.6,2.69020065]
[1768818882606,2.82701394,133.62,133.59,5.10295353]
[1768818882805,2.82701394,133.62,133.59,12.58851677]
[1768818886213,2.82701394,133.62,133.59,5.10295353]
[1768818887002,2.82701394,133.62,133.59,5.10025868]
[1768818887322,2.82701394,133.62,133.59,2.69020065]
[1768818888521,2.82701394,133.62,133.58,12.58639829]
[1768818888946,2.82701394,133.62,133.59,2.69020065]
[1768818889225,10.31097729,133.62,133.59,2.69020065]
[1768818891827,2.82701394,133.61,133.56,13.04175199]
[1768818892036,2.82701394,133.61,133.56,5.10025868]
[1768818892208,2.82701394,133.6,133.57,2.69020065]
[1768818892409,2.76701395,133.6,133.57,2.69020065]
[1768818895619,2.70701396,133.6,133.57,2.69020065]
[1768818898245,2.70701396,133.6,133.57,5.10025868]
[1768818901738,2.70701396,133.6,133.57,2.69020065]
[1768818902141,2.64701397,133.6,133.57,2.69020065]
[1768818902336,7.48508915,133.6,133.56,5.10859172]
[1768818902538,2.41005803,133.59,133.54,12.5967047]
[1768818902740,2.41005803,133.59,133.54,10.18664667]
[1768818902938,2.41005803,133.58,133.53,20.53867701]
[1768818903243,9.83642514,133.58,133.53,10.18712567]
[1768818904147,2.64672416,133.57,133.53,10.18712567]
[1768818904444,2.58672417,133.57,133.53,10.18712567]
[1768818906831,2.58672417,133.57,133.53,2.69853369]
[1768818906832,2.64672416,133.56,133.53,2.69853369]
[1768818907528,2.64672416,133.56,133.52,12.59787412]
[1768818907842,2.64672416,133.56,133.53,2.69853369]
[1768818916056,10.13402351,133.56,133.53,2.69853369]
[1768818917254,2.64672416,133.56,133.53,2.69853369]
[1768818918974,2.64672416,133.55,133.52,10.18781609]
[1768818920173,2.64672416,133.55,133.51,26.56840457]
[1768818920459,2.64672416,133.55,133.51,28.9784626]
[1768818920660,2.64672416,133.55,133.52,2.69853369]
[1768818932974,10.23490468,133.56,133.52,2.69853369]
[1768818934381,2.74752744,133.55,133.52,2.69853369]
[1768818935783,2.74752744,133.55,133.52,5.10859172]
[1768818939781,2.74752744,133.55,133.52,2.69853369]
[1768818940966,2.77976845,133.54,133.52,2.69853369]
[1768818950596,2.77976845,133.54,133.51,29.08878363]
[1768818952204,2.77976845,133.54,133.51,26.67579056]
[1768818952499,2.77976845,133.54,133.52,2.80622233]
[1768818952884,2.77976845,133.54,133.51,28.95179624]
[1768818953082,2.77976845,133.54,133.51,26.2825613]
[1768818953406,2.77976845,133.54,133.51,28.95179624]
[1768818955412,2.77976845,133.54,133.52,2.66923494]
[1768818959698,2.67275557,133.55,133.52,2.66923494]
[1768818960011,10.15975346,133.57,133.54,2.66923494]
[1768818960800,2.67275557,133.56,133.54,2.66923494]
[1768818961818,2.67275557,133.56,133.53,5.08222801]
[1768818962798,2.67275557,133.56,133.54,2.66923494]
[1768818963119,2.67275557,133.59,133.55,5.08222801]
[1768818963306,2.67275557,133.58,133.55,2.66923494]
[1768818967721,2.67275557,133.58,133.56,2.66923494]
[1768818968224,2.67275557,133.58,133.55,12.57004784]
[1768818978815,2.67275557,133.58,133.55,5.08222801]
[1768818982721,2.67275557,133.58,133.55,12.57003003]
[1768818983851,2.67275557,133.58,133.55,10.15703696]
[1768818984157,2.67275557,133.58,133.55,12.57003003]
[1768818984450,2.67275557,133.58,133.55,12.78726503]
[1768818985453,2.67275557,133.58,133.55,9.90079509]
[1768818985632,2.67275557,133.58,133.56,2.88646994]
[1768818986955,2.67275557,133.58,133.55,12.78726503]
[1768818987257,2.67275557,133.58,133.56,2.88646994]
[1768818989459,2.67275557,133.58,133.55,12.78726503]
[1768818993161,2.67275557,133.58,133.55,10.37427196]
[1768818993454,2.67275557,133.58,133.55,12.78726503]
[1768818997457,2.67275557,133.58,133.55,10.37427196]
[1768818997645,2.67275557,133.58,133.55,12.78726503]
[1768818998656,2.67275557,133.58,133.55,2.88646994]
[1768818999953,2.67275557,133.58,133.55,10.37413732]
[1768819000161,2.67275557,133.58,133.55,12.62459435]
[1768819003159,2.67275557,133.58,133.55,9.90066045]
[1768819003343,2.67275557,133.58,133.56,2.7239339]
[1768819003663,2.67275557,133.58,133.55,12.62459435]
[1768819004863,2.67275557,133.58,133.55,9.90066045]
[1768819005044,2.67275557,133.58,133.56,2.7239339]
[1768819005461,2.67275557,133.58,133.55,12.62459435]
[1768819006542,2.68177284,133.59,133.56,2.7239339]
[1768819006866,2.68177284,133.6,133.57,5.13692697]
[1768819007052,2.68177284,133.6,133.58,2.7239339]
[1768819007966,2.68177284,133.61,133.59,2.41299307]
[1768819008267,2.68177284,133.62,133.59,2.6939339]
[1768819008652,2.68177284,133.62,133.59,5.10692697]
[1768819010946,2.68177284,133.62,133.59,5.10397918]
[1768819012753,2.68177284,133.62,133.59,12.58955471]
[1768819013773,2.68177284,133.62,133.58,12.62068716]
[1768819013955,5.28067135,133.61,133.57,2.72475201]
[1768819014157,2.41004528,133.61,133.57,2.72475201]
[1768819014376,2.87062607,133.6,133.57,2.72475201]
[1768819015480,2.87062607,133.6,133.57,10.21122976]
[1768819016073,2.87062607,133.6,133.57,12.62127504]
[1768819016878,2.87062607,133.6,133.58,2.72475201]
[1768819017072,2.87062607,133.61,133.58,2.72475201]
[1768819018474,2.87062607,133.63,133.59,5.13479729]
[1768819019478,2.87062607,133.63,133.59,12.62035486]
[1768819019677,2.87062607,133.63,133.6,2.72475201]
[1768819019856,2.87062607,133.63,133.6,2.41004528]
[1768819020479,2.87062607,133.64,133.61,5.13479729]
[1768819022580,2.87062607,133.65,133.62,2.72475201]
[1768819022887,2.87062607,133.65,133.61,9.89429754]
[1768819022888,2.87062607,133.65,133.61,12.61904955]
[1768819024376,2.87062607,133.64,133.6,12.61958355]
[1768819025669,2.87062607,133.64,133.61,2.72475201]
[1768819027485,2.87062607,133.64,133.61,5.13479729]
[1768819027782,2.87062607,133.64,133.61,2.41004528]
[1768819027991,2.87062607,133.65,133.62,5.13479729]
[1768819028671,2.87062607,133.65,133.63,2.72475201]
[1768819029871,2.87062607,133.67,133.64,2.72475201]
[1768819031278,2.87062607,133.67,133.64,5.13479729]
[1768819031783,2.87062607,133.67,133.64,12.61743862]
[1768819032476,2.97062607,133.68,133.65,2.72475201]
[1768819033698,2.97062607,133.68,133.64,12.61743862]
[1768819034194,2.97062607,133.68,133.65,2.72475201]
[1768819035387,2.97062607,133.68,133.65,5.13479729]
[1768819035999,2.97062607,133.68,133.66,2.72475201]
[1768819036479,0.1,133.68,133.66,2.72475201]
[1768819037491,0.1,133.68,133.66,5.13479729]
[1768819037677,0.1,133.68,133.67,2.72475201]
[1768819037878,0.1,133.68,133.67,5.13479729]
[1768819038393,0.1,133.68,133.67,2.41004528]
[1768819038702,0.1,133.68,133.66,12.6164637]
[1768819040280,2.97062607,133.68,133.66,2.72475201]
[1768819044212,2.97062607,133.68,133.66,10.20641754]
[1768819047709,19.26572713,133.71,133.68,2.79569839]
[1768819048010,2.88572713,133.71,133.68,2.79569839]
[1768819048807,2.88572713,133.71,133.68,5.20574367]
[1768819050912,2.88572713,133.71,133.69,2.41004528]
[1768819051390,2.88572713,133.71,133.68,10.27621017]
[1768819052418,0.1,133.71,133.69,10.27566864]
[1768819052621,0.1,133.72,133.7,5.20574367]
[1768819052827,0.1,133.72,133.7,2.79569839]
[1768819057423,2.88572713,133.72,133.69,10.27566864]
[1768819059615,2.88572713,133.72,133.68,7.48047197]
[1768819059927,2.76158342,133.71,133.66,75.14512374]
[1768819060099,9.98840538,133.72,133.66,7.48128573]
[1768819060100,2.76158342,133.69,133.66,7.48128573]
[1768819060299,2.76158342,133.69,133.65,26.51582115]
[1768819061531,2.76158342,133.69,133.65,10.13582115]
[1768819061826,2.76158342,133.69,133.66,2.65379273]
[1768819064502,2.76158342,133.69,133.66,10.13530153]
[1768819067231,2.76158342,133.68,133.65,7.48202573]
[1768819067437,2.76158342,133.68,133.64,26.51647288]
[1768819070613,2.76158342,133.68,133.64,28.92651816]
[1768819070811,2.76158342,133.68,133.64,26.51647288]
[1768819071224,2.76158342,133.68,133.64,10.13647288]
[1768819072646,2.76158342,133.68,133.65,2.65379273]
[1768819079455,10.2422116,133.68,133.65,2.65379273]
[1768819079630,2.64815121,133.66,133.63,10.31424518]
[1768819079832,2.64815121,133.66,133.62,26.69469429]
[1768819080770,2.64815121,133.66,133.63,2.83091589]
[1768819082372,2.64815121,133.65,133.62,26.69469429]
[1768819082545,2.64815121,133.65,133.62,10.31469429]
[1768819084268,2.64815121,133.65,133.62,2.83091589]
[1768819084470,2.64815121,133.64,133.61,10.31528908]
[1768819085771,2.64815121,133.64,133.61,7.48437319]
[1768819085970,2.64815121,133.64,133.62,2.83091589]
[1768819092078,2.64815121,133.64,133.61,10.31528908]
[1768819093172,2.64815121,133.64,133.61,10.3153829]
[1768819096976,2.64815121,133.64,133.62,2.83091589]
[1768819097179,2.64815121,133.66,133.63,2.83091589]
[1768819097889,2.64815121,133.66,133.62,10.31451886]
[1768819103196,2.75832714,133.67,133.63,2.63521867]
[1768819103374,2.75832714,133.67,133.64,2.63521867]
[1768819117101,2.75832714,133.66,133.63,10.11825742]
[1768819117422,2.75832714,133.65,133.62,7.48358349]
[1768819118816,2.75832714,133.65,133.62,2.63521867]
[1768819119636,2.74999831,133.64,133.61,2.78409011]
[1768819119805,2.74999831,133.64,133.6,26.64892219]
[1768819121116,2.74999831,133.64,133.6,10.26892219]
[1768819121633,2.74999831,133.64,133.61,10.26854687]
[1768819123409,2.74999831,133.64,133.62,2.78409011]
[1768819130124,2.74999831,133.64,133.61,10.26854687]
[1768819144051,5.15684412,133.65,133.62,2.74339776]
[1768819144227,2.74706801,133.64,133.61,2.74339776]
[1768819145537,2.74706801,133.64,133.61,10.22741577]
[1768819152444,2.74706801,133.65,133.62,2.74339776]
[1768819152743,2.74706801,133.66,133.62,2.74339776]
[1768819153667,2.74706801,133.66,133.62,10.22708333]
[1768819154143,2.74706801,133.66,133.63,2.74339776]
[1768819158171,2.74706801,133.66,133.62,10.22708333]
[1768819158351,2.74706801,133.64,133.62,10.22708333]
[1768819158551,2.74706801,133.64,133.62,7.48368557]
[1768819160458,2.74706801,133.64,133.61,28.93864537]
[1768819160982,2.74706801,133.64,133.61,10.22786748]
[1768819161284,2.74706801,133.63,133.6,7.48477911]
[1768819161953,2.74706801,133.63,133.59,10.22892355]
[1768819163374,2.74706801,133.63,133.59,12.63869966]
[1768819164871,2.74706801,133.63,133.59,10.22892355]
[1768819173596,2.74706801,133.63,133.59,12.63869966]
[1768819180725,2.74706801,133.63,133.59,10.22892355]
[1768819181018,2.74706801,133.63,133.59,12.63869966]
[1768819186432,2.74706801,133.63,133.6,5.19702122]
[1768819186636,2.62706803,133.63,133.6,5.19702122]
[1768819190036,2.62266467,133.64,133.61,2.78724511]
[1768819190227,2.62266467,133.65,133.62,5.19702122]
[1768819191540,2.62266467,133.65,133.62,12.68059014]
[1768819192247,2.62266467,133.65,133.63,2.78724511]
[1768819192418,2.62266467,133.67,133.64,2.78724511]
[1768819194052,9.89060251,133.68,133.65,2.75078457]
[1768819194053,2.88247214,133.68,133.65,2.75078457]
[1768819196641,2.88247214,133.68,133.64,10.23347347]
[1768819196863,2.88247214,133.68,133.64,12.6418157]
[1768819197556,2.88247214,133.67,133.64,5.1591268]
[1768819199331,2.88247214,133.67,133.64,12.64188735]
[1768819199533,2.88247214,133.67,133.64,10.23354512]
[1768819200857,2.88247214,133.67,133.64,2.75078457]
[1768819201652,2.88247214,133.66,133.63,2.75078457]
[1768819202549,5.29081437,133.66,133.62,2.75078457]
[1768819202757,2.88247214,133.65,133.62,2.75078457]
[1768819203337,2.88247214,133.65,133.62,10.23464427]
[1768819205961,2.88247214,133.65,133.62,12.6429865]
[1768819206262,2.88247214,133.66,133.63,2.75078457]
[1768819216477,26.7432767,133.68,133.64,2.40834223]
[1768819216664,10.3632767,133.68,133.65,2.75078457]
[1768819216976,2.88247214,133.67,133.65,2.75078457]
[1768819217176,2.88247214,133.67,133.64,5.1591268]
[1768819217673,2.88247214,133.67,133.65,2.75078457]
[1768819219074,2.88247214,133.67,133.65,5.1591268]
[1768819222277,2.88247214,133.7,133.67,2.75078457]
[1768819222458,2.88247214,133.7,133.68,2.40834223]
[1768819225692,2.88247214,133.7,133.68,5.06953389]
[1768819225887,2.88710547,133.71,133.68,12.54993791]
[1768819227294,2.88710547,133.71,133.69,2.40834223]
[1768819227586,2.98710547,133.72,133.7,2.40834223]
[1768819228297,0.1,133.72,133.71,2.40834223]
[1768819230280,0.1,133.72,133.7,5.06953389]
[1768819230794,2.98710547,133.72,133.7,2.40834223]
[1768819230995,2.98710547,133.72,133.7,5.06953389]
[1768819231199,2.98710547,133.72,133.7,2.66119166]
[1768819235878,2.98710547,133.72,133.7,2.63119166]
[1768819237301,2.98710547,133.72,133.7,10.11060281]
[1768819237999,2.98710547,133.72,133.7,2.63119166]
[1768819240920,0.1,133.72,133.7,10.11054814]
[1768819241120,0.1,133.72,133.71,2.88725267]
[1768819242231,0.1,133.72,133.7,10.36660915]
[1768819243118,0.2,133.73,133.71,2.88725267]
[1768819243324,0.2,133.73,133.71,2.85725267]
[1768819249421,0.2,133.73,133.71,2.82725267]
[1768819252832,2.90099833,133.73,133.71,2.82725267]
[1768819255742,2.90099833,133.73,133.7,10.20885096]
[1768819266550,0.2,133.73,133.71,10.20808318]
[1768819271856,2.90099833,133.73,133.71,10.20808318]
[1768819272057,2.90099833,133.73,133.7,2.72949448]
[1768819272351,2.90099833,133.73,133.7,10.20886055]
[1768819272556,2.70099833,133.72,133.69,12.61548759]
[1768819273056,2.90099833,133.73,133.7,2.72949448]
[1768819275059,2.90099833,133.73,133.7,10.20888282]
[1768819278562,2.80099833,133.74,133.7,7.47938834]
[1768819278766,0.1,133.74,133.72,2.72949448]
[1768819279062,2.80099833,133.74,133.72,2.72949448]
[1768819280061,2.80099833,133.74,133.71,2.72949448]
[1768819280865,2.80099833,133.74,133.71,10.20804318]
[1768819281964,0.1,133.74,133.72,2.72949448]
[1768819283165,0.1,133.74,133.72,10.2076421]
[1768819301785,0.1,133.76,133.74,2.73149247]
[1768819303188,0.1,133.76,133.74,10.208446]
[1768819304791,0.1,133.76,133.74,12.61455317]
[1768819310798,0.1,133.76,133.74,10.208446]
[1768819310999,0.1,133.76,133.74,5.13759964]
[1768819311189,0.1,133.76,133.74,12.61471459]
[1768819311384,2.74000173,133.76,133.74,12.61471459]
[1768819312504,2.74000173,133.76,133.74,10.20860742]
[1768819315211,2.74000173,133.76,133.74,7.47711495]
[1768819320318,2.74000173,133.76,133.71,2.88069657]
[1768819320500,2.74000173,133.76,133.72,5.28538656]
[1768819321516,2.74000173,133.76,133.72,12.76354434]
[1768819322221,2.74000173,133.76,133.73,2.88069657]
[1768819324825,10.21608958,133.76,133.73,2.88069657]
[1768819325330,2.74000173,133.76,133.73,2.88069657]
[1768819328839,2.74000173,133.76,133.72,12.76354434]
[1768819329725,2.74000173,133.76,133.73,2.88069657]
[1768819331432,2.74000173,133.76,133.72,12.76354434]
[1768819331634,2.74000173,133.76,133.72,9.88284777]
[1768819332036,2.74000173,133.76,133.72,12.76354434]
[1768819333341,7.57608567,133.76,133.72,12.76354434]
[1768819333551,2.79948343,133.74,133.69,2.88069657]
[1768819333718,2.79948343,133.73,133.69,2.88069657]
[1768819333924,2.79948343,133.71,133.68,7.48047185]
[1768819334143,2.73948344,133.71,133.68,10.36116842]
[1768819334344,2.67948345,133.71,133.68,10.36116842]
[1768819334745,16.36,133.75,133.69,2.88069657]
[1768819334746,9.88220054,133.74,133.69,2.88069657]
[1768819336451,2.79948343,133.73,133.69,10.36064429]
[1768819341049,2.79948343,133.73,133.7,2.88069657]
[1768819349463,2.77316411,133.72,133.68,2.64931261]
[1768819350261,2.77316411,133.72,133.68,10.12986277]
[1768819350786,2.77316411,133.72,133.68,12.53455276]
[1768819353040,2.77316411,133.72,133.69,2.64931261]
[1768819356959,2.77316411,133.72,133.69,5.0540026]
[1768819357154,16.36,133.75,133.69,9.8846618]
[1768819357358,2.77316411,133.75,133.72,5.0540026]
[1768819357974,2.87316411,133.76,133.74,2.40468999]
[1768819358651,2.87316411,133.76,133.73,5.0540026]
[1768819359472,2.87316411,133.76,133.74,9.8818769]
[1768819360970,0.1,133.76,133.75,2.40468999]
[1768819361957,0.1,133.78,133.77,2.80698289]
[1768819362266,2.8659047,133.78,133.75,10.28349906]
[1768819362571,2.8659047,133.78,133.75,12.68818905]
[1768819362878,2.8659047,133.78,133.76,2.40468999]
[1768819363170,0.1,133.78,133.77,2.40468999]
[1768819363363,0.1,133.78,133.76,5.21167288]
[1768819367357,0.1,133.78,133.76,12.68769295]
[1768819369381,2.8659047,133.78,133.75,10.28347578]
[1768819369677,2.8659047,133.78,133.76,2.40468999]
[1768819370082,2.8659047,133.78,133.75,12.68816577]
[1768819371463,2.8659047,133.78,133.75,9.88118288]
[1768819371777,2.8659047,133.78,133.76,2.80698289]
[1768819372184,2.8659047,133.78,133.75,12.68816577]
[1768819372362,2.8659047,133.78,133.76,2.40468999]
[1768819373879,2.8659047,133.78,133.75,10.28347578]
[1768819374079,2.8659047,133.78,133.76,2.40468999]
[1768819376883,2.8659047,133.78,133.76,2.40429873]
[1768819377084,2.8659047,133.78,133.75,10.28347578]
[1768819377286,2.8659047,133.78,133.75,12.68777451]
[1768819381490,2.8659047,133.78,133.75,9.88079162]
[1768819381691,2.63898931,133.77,133.73,12.60596849]
[1768819381989,2.63898931,133.77,133.73,2.40429873]
[1768819383504,2.63898931,133.76,133.73,2.40429873]
[1768819384300,2.63898931,133.76,133.72,12.60664948]
[1768819385101,2.57898932,133.76,133.73,7.47767489]
[1768819385274,2.57898932,133.76,133.73,9.88197362]
[1768819385473,2.51898933,133.76,133.73,12.60610089]
[1768819385797,2.51898933,133.76,133.74,2.40429873]
[1768819391702,2.45898934,133.76,133.74,2.40429873]
[1768819393701,2.45898934,133.76,133.74,5.128426]
[1768819396006,2.39898935,133.76,133.74,5.128426]
[1768819398402,2.33898936,133.76,133.74,5.128426]
[1768819398700,2.33898936,133.76,133.74,2.40429873]
[1768819405412,7.57523059,133.78,133.74,5.0128]
[1768819407494,2.63188934,133.77,133.74,5.0128]
[1768819407815,2.57188935,133.77,133.74,5.0128]
[1768819413018,2.57188935,133.77,133.74,2.60850127]
[1768819413318,2.57188935,133.77,133.74,5.0128]
[1768819414126,2.51188936,133.77,133.74,5.0128]
[1768819415224,2.51188936,133.77,133.74,2.60850127]
[1768819415398,2.51188936,133.77,133.74,5.0128]
[1768819417323,2.51188936,133.77,133.74,2.60850127]
[1768819417622,2.51188936,133.77,133.74,5.0128]
[1768819418522,2.51188936,133.77,133.74,2.60850127]
[1768819418724,2.51188936,133.77,133.74,5.0128]
[1768819435808,2.51188936,133.77,133.74,2.60850127]
[1768819436112,2.51188936,133.77,133.74,5.0128]
[1768819436937,2.51188936,133.77,133.74,5.01332175]
[1768819456493,2.51188936,133.77,133.74,2.60850127]
[1768819462978,5.60807769,133.76,133.74,2.60850127]
[1768819463179,2.51188936,133.77,133.74,2.60850127]
[1768819463586,5.60793586,133.76,133.74,2.60850127]
[1768819463795,2.51188936,133.77,133.74,2.60850127]
[1768819463975,5.60793586,133.76,133.74,2.60850127]
[1768819464171,2.51188936,133.77,133.74,2.60850127]
[1768819464373,5.60808876,133.76,133.74,2.60850127]
[1768819464572,2.51188936,133.77,133.74,2.60850127]
[1768819464785,5.60807627,133.76,133.74,2.60850127]
[1768819464987,2.51188936,133.77,133.74,2.60850127]
[1768819465186,5.60807786,133.76,133.74,2.60850127]
[1768819465385,2.51188936,133.77,133.74,2.60850127]
[1768819465588,5.60807788,133.76,133.74,2.60850127]
[1768819465896,2.51188936,133.77,133.74,2.60850127]
[1768819466081,5.6080763,133.76,133.74,2.60850127]
[1768819466280,2.51188936,133.77,133.74,2.60850127]
[1768819466492,5.60807791,133.76,133.74,2.60850127]
[1768819466694,2.51188936,133.77,133.74,2.60850127]
[1768819466895,5.60807791,133.76,133.74,2.60850127]
[1768819467115,2.51188936,133.77,133.74,2.60850127]
[1768819467279,5.60809287,133.76,133.74,2.60850127]
[1768819467481,2.51188936,133.77,133.74,2.60850127]
[1768819467682,5.60808025,133.76,133.74,2.60850127]
[1768819467887,2.51188936,133.77,133.74,2.60850127]
[1768819468093,5.60807866,133.76,133.74,2.60850127]
[1768819468393,2.51188936,133.77,133.74,2.60850127]
[1768819468595,5.60808027,133.76,133.74,2.60850127]
[1768819468780,2.51188936,133.77,133.74,2.60850127]
[1768819468981,5.60808027,133.76,133.74,2.60850127]
[1768819469172,2.51188936,133.77,133.74,2.60850127]
[1768819469376,5.60809537,133.76,133.74,2.60850127]
[1768819469577,2.51188936,133.77,133.74,2.60850127]
[1768819469792,5.60808262,133.76,133.74,2.60850127]
[1768819469992,2.51188936,133.77,133.74,2.60850127]
[1768819470190,5.60808262,133.76,133.74,2.60850127]
[1768819470392,2.51188936,133.77,133.74,2.60850127]
[1768819470594,5.60808106,133.76,133.74,2.60850127]
[1768819470875,2.51188936,133.77,133.74,2.60850127]
[1768819471081,5.60808264,133.76,133.74,2.60850127]
[1768819471376,2.51188936,133.77,133.74,2.60850127]
[1768819471577,5.60805438,133.76,133.74,2.60850127]
[1768819471802,2.51188936,133.77,133.74,2.60850127]
[1768819471989,5.60805279,133.76,133.74,2.60850127]
[1768819472191,2.51188936,133.77,133.74,2.60850127]
[1768819472391,5.60803907,133.76,133.74,2.60850127]
[1768819472592,2.51188936,133.77,133.74,2.60850127]
[1768819472793,5.60803121,133.76,133.74,2.60850127]
[1768819472985,2.51188936,133.77,133.74,2.60850127]
[1768819473189,5.60802963,133.76,133.74,2.60850127]
[1768819473485,2.51188936,133.77,133.74,2.60850127]
[1768819473686,5.60800852,133.76,133.74,2.60850127]
[1768819473908,2.51188936,133.77,133.74,2.60850127]
[1768819474102,5.60800852,133.76,133.74,2.60850127]
[1768819474295,2.51188936,133.77,133.74,2.60850127]
[1768819474611,5.60798886,133.76,133.74,2.60850127]
[1768819474793,2.51188936,133.77,133.74,2.60850127]
[1768819474992,5.60798886,133.76,133.74,2.60850127]
[1768819475195,2.51188936,133.77,133.74,2.60850127]
[1768819475379,5.6079756,133.76,133.74,2.60850127]
[1768819475580,2.51188936,133.77,133.74,2.60850127]
[1768819475781,5.60797454,133.76,133.74,2.60850127]
[1768819475985,2.51188936,133.77,133.74,2.60850127]
[1768819476207,5.60797295,133.76,133.74,2.60850127]
[1768819476403,2.51188936,133.77,133.74,2.60850127]
[1768819476702,5.60796094,133.76,133.74,2.60850127]
[1768819476886,2.51188936,133.77,133.74,2.60850127]
[1768819477086,5.60796094,133.76,133.74,2.60850127]
[1768819477283,2.51188936,133.77,133.74,2.60850127]
[1768819477484,5.60794835,133.76,133.74,2.60850127]
[1768819477688,2.51188936,133.77,133.74,2.60850127]
[1768819477888,5.60794994,133.76,133.74,2.60850127]
[1768819478088,2.51188936,133.77,133.74,2.60850127]
[1768819478387,5.60793742,133.76,133.74,2.60850127]
[1768819478589,2.51188936,133.77,133.74,2.60850127]
[1768819478789,5.60794311,133.76,133.74,2.60850127]
[1768819479014,2.51188936,133.77,133.74,2.60850127]
[1768819479191,5.60782516,133.76,133.74,2.60850127]
[1768819479491,2.51188936,133.77,133.74,2.60850127]
[1768819479691,5.60782617,133.76,133.74,2.60850127]
[1768819479902,2.51188936,133.77,133.74,2.60850127]
[1768819480203,5.60782617,133.76,133.74,2.60850127]
[1768819480404,2.51188936,133.77,133.74,2.60850127]
[1768819480612,5.6078256,133.76,133.74,2.60850127]
[1768819480791,2.51188936,133.77,133.74,2.60850127]
[1768819480991,5.60782719,133.76,133.74,2.60850127]
[1768819481313,2.51188936,133.77,133.74,2.60850127]
[1768819481499,8.20094049,133.76,133.74,2.60850127]
[1768819481685,2.59311388,133.76,133.74,2.60850127]
[1768819491120,2.59311388,133.77,133.74,2.60850127]
[1768819491323,5.60808344,133.76,133.74,2.60850127]
[1768819491504,2.59311388,133.77,133.74,2.60850127]
[1768819491825,5.60802954,133.76,133.74,2.60850127]
[1768819492125,2.59311388,133.77,133.74,2.60850127]
[1768819492317,5.60791166,133.76,133.74,2.60850127]
[1768819492512,2.59311388,133.77,133.74,12.49051204]
[1768819492702,5.60791677,133.76,133.74,12.49051204]
[1768819492902,2.59311388,133.77,133.74,12.49051204]
[1768819493100,5.60791677,133.76,133.74,10.08569156]
[1768819493303,2.59311388,133.77,133.74,10.08569156]
[1768819493506,5.60792535,133.76,133.74,10.08569156]
[1768819493708,2.59311388,133.77,133.74,10.08569156]
[1768819493910,5.60792535,133.76,133.74,10.08569156]
[1768819494124,2.59311388,133.77,133.74,10.08569156]
[1768819494306,5.60792535,133.76,133.74,10.08569156]
[1768819494522,2.59311388,133.77,133.74,10.08569156]
[1768819494822,5.60793366,133.76,133.74,10.08569156]
[1768819495021,2.59311388,133.77,133.74,10.08569156]
[1768819495324,5.60793366,133.76,133.74,10.08569156]
[1768819495620,2.59311388,133.77,133.74,10.08569156]
[1768819495819,5.60794278,133.76,133.74,10.08569156]
[1768819496026,2.59311388,133.77,133.74,10.08569156]
[1768819496228,5.60794119,133.76,133.74,10.08569156]
[1768819496431,2.59311388,133.77,133.74,10.08569156]
[1768819496615,5.60795076,133.76,133.74,10.08569156]
[1768819496817,2.59311388,133.77,133.74,10.08569156]
[1768819497436,2.59311388,133.77,133.74,2.60850127]
[1768819497631,5.60794194,133.76,133.74,2.60850127]
[1768819497838,2.59311388,133.77,133.74,2.60850127]
[1768819498019,5.60794353,133.76,133.74,2.60850127]
[1768819498218,2.59311388,133.77,133.74,2.60850127]
[1768819498634,5.60797322,133.76,133.74,2.60850127]
[1768819498940,2.59311388,133.77,133.74,2.60850127]
[1768819499116,5.60797481,133.76,133.74,2.60850127]
[1768819499317,2.59311388,133.77,133.74,2.60850127]
[1768819499617,5.60801913,133.76,133.74,2.60850127]
[1768819499817,2.59311388,133.77,133.74,2.60850127]
[1768819500111,5.60801913,133.76,133.74,2.60850127]
[1768819500315,2.59311388,133.77,133.74,2.60850127]
[1768819500537,5.60806724,133.76,133.74,2.60850127]
[1768819500724,2.59311388,133.77,133.74,2.60850127]
[1768819500917,5.60806565,133.76,133.74,2.60850127]
[1768819501118,2.59311388,133.77,133.74,10.0856946]
[1768819501418,5.60806564,133.76,133.74,10.0856946]
[1768819501620,2.59311388,133.77,133.74,10.0856946]
[1768819501819,5.60811958,133.76,133.74,10.0856946]
[1768819502019,2.59311388,133.77,133.74,10.0856946]
[1768819502220,5.60811958,133.76,133.74,10.0856946]